Cogmind - Beta 12 @@@ ROGUE MODE // 2023.03.06 @ 05:02:45 Player: Red Box Result: Destroyed by S-27 Virus with Autogun Performance ------------- Evolutions (6) 3000 Regions Visited (21) 4200 Robots Destroyed (366) 1830 Value Destroyed (15047) 15047 Prototype IDs (51) 1020 Alien Tech Used (0) 0 Bonus (8750) 8750 TOTAL SCORE: 33847 Bonus ------- Triggered High Security 500 High Alert Combat Kills 4413 Follower Combat Kills 2730 Network Hubs Disabled 400 Met Data Miner 300 Met Imprinter 300 Built Enhanced Grunts 300 Met R17 at Cetus 500 Friendly Fire -693 Cogmind --------- Core Integrity 0/1150 Matter 10/300 Energy 100/100 System Corruption 25% Temperature Cool (0) Movement Core (50) Location -4/Factory Parts ------- > --- POWER (1) -------- (None) > --- PROPULSION (3) --- (None) > --- UTILITY (11) ----- (None) > --- WEAPON (4) ------- (None) > --- INVENTORY (5) ---- High-capacity Storage Unit Improved Energy Well (400) Light Regenerative Plating Light Regenerative Plating Peak State ------------ > --- POWER ------------ Quantum Reactor > --- PROPULSION ------- Centrium Heavy Treads Wheel > --- UTILITY ---------- Advanced Heat Sink Advanced Heat Sink High-capacity Storage Unit Improved Sensor Array Advanced Signal Interpreter Improved Target Analyzer Improved Core Shielding Centrium Medium Armor Plating Centrium Medium Armor Plating Light Regenerative Plating Light Regenerative Plating > --- WEAPON ----------- Advanced Plasma Rifle Advanced Variable Charge Gun Advanced KE Penetrator Tactical Quantum Warhead > --- INVENTORY -------- Armored Medium Treads Armored Medium Treads Centrium Heavy Treads High-capacity Storage Unit Improved Energy Well Advanced Energy Well Experimental Core Analyzer Authchip [R/Combat] Authchip [Device] Cooled Plasma Rifle Heavy Wave Gun Advanced Variable Charge Gun Advanced Variable Charge Gun Matter Neutralizer Experimental Thermic Cannon Enhanced Gauss Cannon Tri-rail Accelerator [Rating: 133] Favorites ----------- Power Fission Core Engine Improved Deuterium Engine Power Core Fission Core Reactor Quantum Reactor Propulsion Armored Huge Wheel Treads Improved Medium Treads Leg Aluminum Leg Wheel Armored Huge Wheel Hover Unit Improved Hover Unit Utility High-capacity Storage Unit Device Experimental Cooling System Storage High-capacity Storage Unit Processor Improved Signal Interpreter Hackware Improved System Shield Protection Light Regenerative Plating Weapon Heavy Plasma Cannon Energy Gun Plasma Rifle Energy Cannon Heavy Plasma Cannon Ballistic Gun Advanced KE Penetrator Ballistic Cannon Enhanced Gauss Cannon Launcher Proton Missile Launcher Impact Weapon Hammer Slashing Weapon Power Sword Special Melee Weapon Advanced Datajack Build | -11 -10 -10 -10 -9 -8 -7 -7 -7 -7 -6 -6 -6 -6 -6 -5 -5 -5 -5 -5 -5 -4 ------- Run | Jun Mat Min Exi Min Mat Fac Low Low Dat Pro Fac Low Low Zio Pro Fac Ext Cet Arc Hub Fac Slots Evolved 12 | . . . . . 4 2 . . . . 2 . . . . 2 . . . . 2 Power . | . . . . . . . . . . . . . . . . . . . . . . Propulsion 1 | . . . . . . . . . . . 1 . . . . . . . . . . Utility 9 | . . . . . 3 2 . . . . 1 . . . . 2 . . . . 1 Weapon 2 | . . . . . 1 . . . . . . . . . . . . . . . 1 Parts Attached 471 | 7 15 . . 4 38 60 15 2 2 36 50 5 32 15 4 45 32 16 3 47 43 Power 40 | 1 2 . . . 4 3 1 . . 2 5 . 3 2 1 3 2 3 . 5 3 Engine 15 | 1 2 . . . 4 3 1 . . 2 1 . 1 . . . . . . . . Core 15 | . . . . . . . . . . . 4 . 2 2 1 2 2 1 . 1 . Reactor 10 | . . . . . . . . . . . . . . . . 1 . 2 . 4 3 Propulsion 48 | 2 2 . . . 3 8 . . . 4 5 . 1 . . 5 3 3 . 4 8 Treads 13 | . . . . . . . . . . . 1 . 1 . . . 2 1 . 3 5 Leg 6 | 2 . . . . . . . . . 1 . . . . . 2 . 1 . . . Wheel 28 | . 2 . . . 3 8 . . . 3 3 . . . . 3 1 1 . 1 3 Hover 1 | . . . . . . . . . . . 1 . . . . . . . . . . Flight . | . . . . . . . . . . . . . . . . . . . . . . Utility 209 | 2 5 . . . 13 25 9 2 . 12 28 2 18 10 1 23 19 2 1 24 13 Device 123 | 1 3 . . . 7 14 5 2 . 6 13 2 13 4 1 16 12 1 . 17 6 Storage 9 | 1 2 . . . . 2 . . . 3 1 . . . . . . . . . . Processor 9 | . . . . . . . 2 . . . . . . 3 . 1 1 . . 1 1 Hackware 11 | . . . . . 2 . 1 . . . 3 . . 1 . 3 1 . . . . Protection 57 | . . . . . 4 9 1 . . 3 11 . 5 2 . 3 5 1 1 6 6 Artifact . | . . . . . . . . . . . . . . . . . . . . . . Weapon 174 | 2 6 . . 4 18 24 5 . 2 18 12 3 10 3 2 14 8 8 2 14 19 Energy Gun 30 | 2 . . . . 3 2 . . . 2 1 . 1 1 . 1 . 2 . 5 10 Energy Cannon 93 | . 4 . . 2 9 16 3 . 2 11 8 2 5 2 2 12 5 4 1 5 . Ballistic Gun 9 | . 1 . . . 3 . . . . . 1 . . . . . . . . 3 1 Ballistic Cannon 12 | . . . . . 2 . . . . 1 1 . . . . 1 2 2 . 1 2 Launcher 25 | . . . . 2 . 6 2 . . 4 1 1 4 . . . . . . . 5 Special Weapon . | . . . . . . . . . . . . . . . . . . . . . . Impact Weapon 1 | . 1 . . . . . . . . . . . . . . . . . . . . Slashing Weapon 2 | . . . . . . . . . . . . . . . . . 1 . . . 1 Piercing Weapon . | . . . . . . . . . . . . . . . . . . . . . . Special Melee Weapon 2 | . . . . . 1 . . . . . . . . . . . . . 1 . . Unidentified Prototypes 32 | . 1 . . . 3 6 . . . 3 2 . 1 3 . 3 . 3 . 4 3 Corrupted Parts 17 | . . . . . . 2 . . . 9 . . . . . . 1 . . 5 . System Corruption 117 | . . . . . . 20 . . . 70 . . . . . . 5 . . 22 . Parts Lost 86 | . 1 . . . 5 7 1 . . 4 3 1 6 . 4 8 4 . . 9 33 Power 13 | . 1 . . . 2 1 . . . 1 . . . . 1 3 . . . 1 3 Propulsion 14 | . . . . . 2 . . . . . 1 . 1 . . 1 2 . . . 7 Utility 36 | . . . . . 1 5 1 . . 1 2 . 2 . 1 2 1 . . 6 14 Weapon 23 | . . . . . . 1 . . . 2 . 1 3 . 2 2 1 . . 2 9 Highest Loss Streak 16 | . 1 . . . 3 1 1 . . 2 2 1 3 . 3 5 2 . . 3 16 To Critical Strikes 3 | . . . . . 1 . . . . . . . 1 . . 1 . . . . . Average Slot Usage (%) 88 | . 98 100 100 100 99 90 79 84 61 83 86 85 82 79 79 92 99 96 93 92 83 Engine 3 | . 12 14 14 14 8 6 7 7 7 6 4 . . . . . . . . . . Core 2 | . . . . . . . . . . . 1 6 5 6 6 4 5 3 . . 3 Treads 2 | . . . . . . . . . . . 4 . 4 6 6 1 2 4 5 8 5 Wheel 9 | . 12 28 28 28 17 14 7 7 7 6 6 13 7 6 6 11 13 7 5 2 3 Device 18 | . 13 14 14 14 14 22 15 23 23 23 15 20 19 19 19 22 20 17 17 21 14 Storage 6 | . 14 14 14 14 9 7 7 7 7 7 6 6 6 6 6 5 5 5 5 5 4 Processor 5 | . . . . . . . 8 7 7 7 6 6 6 6 6 5 11 11 11 6 9 Hackware 2 | . . . . . 11 4 1 . . . 4 . . . . 6 6 5 5 2 . Protection 10 | . . . . . 10 10 6 7 7 6 12 13 10 6 6 11 12 17 17 19 20 Energy Gun 3 | . 6 . . . 8 . . . . 3 . . 4 5 2 . . 3 5 6 8 Energy Cannon 16 | . 20 28 28 27 13 21 22 23 . 18 19 19 14 12 17 16 16 9 9 7 . Naked Turns 29 | . . . . . . . . . . . . . . . . . . . . . 29 Heaviest Build 143 | 13 53 53 53 53 73 107 105 105 98 112 143 101 102 95 101 114 103 103 103 116 118 Greatest Support 107 | 20 32 32 32 32 32 28 28 28 28 28 38 38 38 28 28 48 38 80 16 107 107 Greatest Overweight (x) 11 | 3 3 1 1 1 3 5 3 3 3 3 5 2 3 3 3 4 5 6 6 7 11 Average Overweight (x) 2 | . . 1 1 1 1 4 2 3 2 3 2 2 2 2 2 2 2 4 6 3 5 Largest Inventory Capacity 20 | 8 20 20 20 20 20 20 20 20 20 20 20 20 20 20 20 20 20 20 20 20 20 Average Capacity 19 | 7 17 20 20 20 20 20 20 20 20 20 20 20 20 20 20 20 20 20 20 20 19 Most Carried 20 | 8 20 20 20 20 20 20 20 20 20 20 20 20 20 20 20 20 20 20 20 20 20 Average Carried 19 | 5 15 19 20 19 19 19 19 19 19 19 19 19 19 19 18 19 19 19 20 19 18 Final Capacity 20 | 8 20 20 20 20 20 20 20 20 20 20 20 20 20 20 20 20 20 20 20 20 5 Final Carried 20 | 8 20 20 20 20 20 20 20 20 20 20 20 20 20 20 20 20 20 20 20 20 4 Class Distribution -------------------- 21% | Skirmisher 21% | Mutant 17% | Scavenger-Tank 8% | Tank 5% | Derelict-Mutant 5% | Scavenger-Mutant 4% | Derelict-Skirmisher 3% | Commander-Mutant Dominant Class ---------------- Mutant | -10/Materials Commander-Mutant | -10/Mines Commander-Mutant | -10/Exiles Mutant | -9/Mines Scavenger-Tank | -8/Materials Tank | -7/Factory Mutant | -7/Lower Caves Derelict-Skirmisher | -7/Lower Caves Derelict-Mutant | -7/Data Miner Derelict-Mutant | -6/Proximity Caves Skirmisher | -6/Factory Skirmisher | -6/Lower Caves Skirmisher | -6/Lower Caves Mutant | -6/Zion Skirmisher | -5/Proximity Caves Scavenger-Skirmisher | -5/Factory Scavenger-Gunner | -5/Extension Commander-Tank | -5/Cetus Scavenger-Tank | -5/Archives Scavenger-Tank | -5/Hub_04(d) Scavenger-Tank | -4/Factory Resources | -11 -10 -10 -10 -9 -8 -7 -7 -7 -7 -6 -6 -6 -6 -6 -5 -5 -5 -5 -5 -5 -4 ----------- Run | Jun Mat Min Exi Min Mat Fac Low Low Dat Pro Fac Low Low Zio Pro Fac Ext Cet Arc Hub Fac Matter Collected 9267 | 270 495 . . 62 597 864 320 102 . 617 691 88 651 137 1039 1194 356 284 10 596 894 Remotely . | . . . . . . . . . . . . . . . . . . . . . . Salvage Created 16406 | 100 371 141 . 100 1428 3268 112 26 . 307 1240 151 436 . 818 1547 1226 242 352 2017 2524 Parts 693 | 7 32 8 . 16 71 141 5 1 . 20 47 8 22 . 14 55 48 12 16 66 104 Haulers Intercepted 7 | . . . . . . 2 . . . . 2 . . . . 1 . . . 2 . Recyclers Shooed 12 | . 1 . . . . 1 . . . . 3 . . . . 2 . . . . 5 Parts Field Recycled 5 | . . . . . . . . . . . . . . . . 5 . . . . . Retrieved Matter 23 | . . . . . . . . . . . . . . . . 23 . . . . . Parts Self-Destructed 70 | . . . . . . . 8 1 . 19 . 8 20 1 13 . . . . . . Prevented 1 | . . . . . . . 1 . . . . . . . . . . . . . . Kills | -11 -10 -10 -10 -9 -8 -7 -7 -7 -7 -6 -6 -6 -6 -6 -5 -5 -5 -5 -5 -5 -4 ------- Run | Jun Mat Min Exi Min Mat Fac Low Low Dat Pro Fac Low Low Zio Pro Fac Ext Cet Arc Hub Fac Combat Hostiles Destroyed 272 | . 9 5 . 8 27 59 2 . . 13 13 6 13 . 13 20 17 4 1 29 33 Melee 2 | . 1 . . . . . . . . . . . . . . . . . . . 1 Guns 57 | . 3 . . . 16 . . . . . . . 4 . 2 . . . . 6 26 Cannons 144 | . 5 5 . 2 7 37 2 . . 5 11 5 6 . 10 16 16 2 1 13 1 AOE 43 | . . . . 6 2 17 . . . 8 2 1 3 . . . . . . . 4 Classes Destroyed 23 | 1 5 . . . 3 8 . 1 . 1 . . . . . . . . 1 2 1 Worker 23 | . 1 . . . 2 7 . . . . 7 . . . . . . . . 1 5 Builder 21 | . . . . . 1 5 . . . . 1 . . . . 1 . . . 4 9 Tunneler 6 | 5 . . . . . . . . . . . . . . . . . . . . 1 Hauler 7 | . . . . . . 2 . . . . 2 . . . . 1 . . . 2 . Recycler 11 | . 1 . . . 1 1 . . . . 2 . . . . 2 . . . . 4 Minesweeper 2 | . . . . . . . . 1 . . . . 1 . . . . . . . . Mechanic 3 | . . . . . . 2 . . . . . . . . . . . . . . 1 Operator 8 | . . . . . . . . . . . . . . . . . . . 8 . . Watcher 16 | . 3 . . . 4 3 . . . . 1 . . . . 1 . 2 . 1 1 Swarmer 49 | . 6 2 . 8 9 1 . . . 7 . 3 5 . 4 3 . 1 . . . Cutter 3 | . . . . . . 3 . . . . . . . . . . . . . . . Saboteur 1 | . . . . . . . . . . . . . . . . . . . . . 1 Grunt 116 | . 3 3 . 1 11 27 1 . . 3 5 2 5 . 8 5 8 1 . 16 17 Brawler 11 | . . . . . . 4 . . . 1 . . . . . 1 . . . 1 4 Duelist 10 | . . . . . 1 1 . . . . . . . . . 2 1 . . 1 4 Protector 2 | . . . . . . 1 . . . . . . . . . . . . . 1 . Sentry 27 | . . . . . 6 5 1 . . . 4 1 1 . . 1 5 . 1 2 . Demolisher 1 | . . . . . . . . . . . . . . . . . . . . 1 . Specialist 1 | . . . . . . 1 . . . . . . . . . . . . . . . Hunter 16 | . . . . . . 10 . . . . . . 2 . . . 1 . . 1 2 Programmer 30 | . . . . . . 6 . . . 1 3 . . . 1 8 1 . . 5 5 Heavy 1 | . . . . . . . . . . . . . . . . . . . . 1 . Behemoth 2 | . . . . . . . . . . 1 1 . . . . . . . . . . Cetus Guard 2 | . . . . . . . . . . . . . . . . . . 2 . . . Thug 1 | . . . . . . . . . . . . . . . . . 1 . . . . Savage 1 | . . . . . . . . . . . . . . . . . 1 . . . . Best Kill Streak 15 | 2 4 3 . 6 7 15 1 1 . 5 9 3 3 . 4 4 2 3 1 5 12 Combat Bots Only 11 | . 3 3 . 6 4 11 1 . . 5 3 3 3 . 4 4 2 2 1 4 7 Max Kills in Single Turn 8 | 1 2 1 . 5 2 8 1 1 . 2 4 1 1 . 2 1 2 1 1 3 8 Gunslinging 1 | . 1 . . . . . . . . . . . . . . . . . . . 1 Exploded 6 | . . . . 4 1 6 . . . 2 2 1 1 . . . . . . . 2 Melee 1 | . 1 . . . . . . . . . . . . . . . . . . . 1 Uniques/NPCs Destroyed . | . . . . . . . . . . . . . . . . . . . . . . Combat | -11 -10 -10 -10 -9 -8 -7 -7 -7 -7 -6 -6 -6 -6 -6 -5 -5 -5 -5 -5 -5 -4 -------- Run | Jun Mat Min Exi Min Mat Fac Low Low Dat Pro Fac Low Low Zio Pro Fac Ext Cet Arc Hub Fac Damage Taken 23112 | . 202 111 . 140 907 3252 178 . . 1312 1443 338 1063 . 936 2085 806 259 54 2966 7060 Core 3104 | . 32 36 . 14 151 322 23 . . 181 116 13 148 . 94 161 116 19 . 523 1155 Absorbed by Shields 95 | . . . . . . . . . . . . . . . . . 45 50 . . . Redirected to Shielding 75 | . . . . . . . . . . . . . . . . . . . . . 75 Regen/Repaired (Parts) 3230 | . . . . . 11 61 . . . . 89 6 53 138 133 360 454 86 55 734 1050 Core Remaining (%) 56 | 100 . . . 67 72 . . . . 24 . . . . 56 . . . . 18 . Volleys Fired 850 | 16 23 6 . 10 75 149 55 2 . 56 43 10 26 1 34 85 41 14 22 95 87 Largest 4 | 2 2 2 . 2 3 3 3 3 . 3 3 3 3 1 3 3 3 3 2 3 4 Hottest 294 | 100 120 120 . 120 183 195 199 205 . 270 290 290 290 90 265 294 294 290 210 290 280 Shots Fired 1954 | 32 46 12 . 19 169 351 61 9 . 115 116 25 66 1 83 178 101 37 44 222 267 Gun 542 | 32 28 . . . 95 . . . . 1 . . 15 . 13 . . 1 19 82 256 Cannon 1366 | . 18 12 . 17 74 330 59 9 . 107 115 23 44 1 70 178 101 36 25 140 7 Launcher 46 | . . . . 2 . 21 2 . . 7 1 2 7 . . . . . . . 4 Special . | . . . . . . . . . . . . . . . . . . . . . . Kinetic 227 | . . . . . 58 . . . . . . . . . . . . 12 . 17 140 Thermal 1614 | 32 46 12 . 17 45 330 59 9 . 108 115 23 59 1 83 178 101 24 44 205 123 Explosive 31 | . . . . 2 . 6 2 . . 7 1 2 7 . . . . . . . 4 Electromagnetic 82 | . . . . . 66 15 . . . . . . . . . . . 1 . . . Robot Hit Streak 22 | 8 6 3 . 4 13 13 4 5 . 7 10 8 10 . 22 12 12 7 11 19 15 Robot Miss Streak 11 | 3 3 2 . 4 4 6 2 1 . 11 8 5 8 . 5 3 3 3 2 3 6 Penetration Max 1 | . . . . . . . . . . . . . . . . . . . . 1 1 Secondary Targets 13 | . 1 . . . 3 . . . . . . . . . . . . . . . 9 Max Gunslinging Chain 2 | . 1 . . . 1 . . . . . . . . . . . . . . . 2 Shots Hit Robots 1052 | 22 23 5 . 9 105 199 7 5 . 32 66 10 32 . 58 88 48 20 37 132 154 Core Hits 611 | 6 16 6 . 10 60 126 4 1 . 22 36 9 24 . 25 37 28 14 17 57 113 Critical Kills 16 | . . . . . 1 . . . . . . . . . . 4 1 1 . . 9 Critical Parts Destroyed 21 | . . . . . . . . . . . . . . . . . . . . 1 20 Critical Strikes 88 | 1 1 . . . 1 . . . . . . . . . 4 4 1 3 7 25 41 Burn 49 | 1 1 . . . . . . . . . . . . . 4 . . 2 7 23 11 Meltdown 7 | . . . . . 1 . . . . . . . . . . 4 1 1 . . . Destroy 30 | . . . . . . . . . . . . . . . . . . . . 1 29 Blast 2 | . . . . . . . . . . . . . . . . . . . . 1 1 Melee Attacks 15 | . 7 . . . 1 . . . . . . . . . . . . . 4 . 3 Impact 7 | . 7 . . . . . . . . . . . . . . . . . . . . Slashing 3 | . . . . . . . . . . . . . . . . . . . . . 3 Piercing . | . . . . . . . . . . . . . . . . . . . . . . Sneak Attacks 6 | . 1 . . . 1 . . . . . . . . . . . . . 4 . . Combat Hostiles 1 | . 1 . . . . . . . . . . . . . . . . . . . . Follow-up Attacks . | . . . . . . . . . . . . . . . . . . . . . . Damage Inflicted 45465 | 276 394 127 . 603 2295 9186 279 149 . 2426 3737 707 1651 . 2055 3728 2092 879 1086 5598 8197 Guns 9814 | 276 203 . . . 1280 . . . . 16 . . 175 . 236 . . . 404 1998 5226 Cannons 25369 | . 156 127 . 163 664 5523 160 149 . 1251 3439 430 753 . 1819 3679 2092 879 682 2911 492 Explosions 10236 | . . . . 440 351 3652 119 . . 1159 298 277 723 . . 49 . . . 689 2479 Melee 35 | . 35 . . . . . . . . . . . . . . . . . . . . Ramming 11 | . . . . . . 11 . . . . . . . . . . . . . . . Kinetic 4425 | . . . . . 444 . . . . . . . . . . . . 283 . 389 3309 Thermal 31433 | 276 359 127 . 163 796 6661 160 149 . 1313 3439 430 928 . 2055 3679 2092 596 1086 4676 2448 Explosive 6567 | . . . . 440 . 1236 119 . . 1113 298 277 723 . . . . . . . 2361 Electromagnetic 2994 | . . . . . 1055 1278 . . . . . . . . . 49 . . . 533 79 Impact 35 | . 35 . . . . . . . . . . . . . . . . . . . . Slashing . | . . . . . . . . . . . . . . . . . . . . . . Piercing . | . . . . . . . . . . . . . . . . . . . . . . Highest Corruption 95 | . . . . . . 25 25 25 25 95 1 1 1 1 . 5 5 . . 32 25 Average Corruption 13 | . . . . . . 18 25 25 25 25 1 1 1 1 . 4 3 . . 7 6 Corruption Purged 14 | . . . . . . . . . . . 1 . . . . 5 5 . . 3 . Corruption Blocked . | . . . . . . . . . . . . . . . . . . . . . . Effects 467 | . . . . . . 101 90 64 7 122 2 8 19 1 . 21 1 . . 16 15 Message Errors 118 | . . . . . . 21 24 20 3 30 1 3 4 1 . 3 . . . 4 4 Matter Fused 103 | . . . . . . 17 24 11 2 33 . 2 5 . . 5 . . . 3 1 Heat Flow Errors 65 | . . . . . . 13 7 13 . 15 . 1 . . . 6 . . . 6 4 Energy Discharges 44 | . . . . . . 9 9 6 1 8 . 1 6 . . 1 . . . 2 1 Parts Rejected 4 | . . . . . . 2 . . . 1 . . . . . . . . . . 1 Parts Fused 10 | . . . . . . 2 3 1 . 2 . . . . . 1 . . . . 1 Data Loss (minor) 48 | . . . . . . 10 9 6 1 15 1 . 2 . . 2 1 . . . 1 Data Loss (major) 18 | . . . . . . 5 3 4 . 4 . . . . . 1 . . . 1 . Misfires 24 | . . . . . . 9 2 3 . 6 . 1 2 . . 1 . . . . . Alerts 7 | . . . . . . 1 3 . . 3 . . . . . . . . . . . Misdirections 9 | . . . . . . 7 . . . 1 . . . . . . . . . . 1 Weapon Failures 17 | . . . . . . 5 6 . . 4 . . . . . 1 . . . . 1 Overload Shots . | . . . . . . . . . . . . . . . . . . . . . . Overflow Damage 1146 | . . . . 11 10 203 6 17 . 80 123 25 55 . 65 216 . . 79 76 180 Projectiles 793 | . . . . . . 119 . 17 . 51 123 25 22 . 65 216 . . 79 76 . Explosions 353 | . . . . 11 10 84 6 . . 29 . . 33 . . . . . . . 180 Melee . | . . . . . . . . . . . . . . . . . . . . . . Knockbacks 3 | . . . . . 1 . . . . . . . . . . . . . . 1 1 Impact . | . . . . . . . . . . . . . . . . . . . . . . Kinetic 3 | . . . . . 1 . . . . . . . . . . . . . . 1 1 Secondary . | . . . . . . . . . . . . . . . . . . . . . . Self-Inflicted Damage 953 | . . . . 28 30 373 . . . 41 . 32 30 . . 24 . . . 142 253 Shots 23 | . . . . 1 1 11 . . . 1 . 1 1 . . 1 . . . 2 4 Rammed 1 | . . . . . . 1 . . . . . . . . . . . . . . . Targets Rammed 1 | . . . . . . 1 . . . . . . . . . . . . . . . Kicked . | . . . . . . . . . . . . . . . . . . . . . . Crushed . | . . . . . . . . . . . . . . . . . . . . . . Highest Temperature 528 | 195 341 15 . 7 380 247 399 251 . 512 451 214 450 141 259 303 478 163 84 528 415 Average Temperature 113 | 81 111 10 . 5 81 86 122 91 . 140 138 71 130 79 91 111 139 55 37 163 104 Received Heat Transfer 4032 | . 27 48 . 15 378 606 60 . . 240 405 66 156 . 237 163 169 69 9 708 676 Effects 29 | . 1 . . . . 1 . . . 5 5 . 1 . 1 . 2 . . 6 7 Shutdowns 10 | . . . . . . . . . . 1 3 . 1 . . . 1 . . 3 1 Energy Bleed 7 | . . . . . . 1 . . . 2 1 . . . 1 . . . . 1 1 Matter Decay 3 | . . . . . . . . . . . 1 . . . . . 1 . . 1 . Short Circuit 1 | . 1 . . . . . . . . . . . . . . . . . . . . Damage (minor) 2 | . . . . . . . . . . 1 . . . . . . . . . . 1 Damage (major) 5 | . . . . . . . . . . 1 . . . . . . . . . . 4 Damage (core) 1 | . . . . . . . . . . . . . . . . . . . . 1 . Siege Activations . | . . . . . . . . . . . . . . . . . . . . . . Robots Corrupted 7 | . . . . . . 4 . . . . . . . . . . . . . 3 . Combat Hostiles 5 | . . . . . . 4 . . . . . . . . . . . . . 1 . Parts Fried 13 | . . . . . 4 6 . . . . . . . . . . . . . 3 . Impact Corruptions . | . . . . . . . . . . . . . . . . . . . . . . Robots Melted 22 | . . . . . 2 1 . . . . . . . . 1 4 1 2 1 9 1 Combat Hostiles 21 | . . . . . 2 1 . . . . . . . . 1 4 1 2 . 9 1 Parts Melted 92 | 2 2 . . . 2 20 . 1 . . 2 1 3 . 8 11 6 2 11 16 5 Heat Transferred 48895 | 888 999 259 . 333 1338 8656 300 250 . 1300 2725 375 1300 . 3615 4825 2535 1243 3152 9898 4904 Parts Sabotaged 2 | . . . . . . . . . . . . . . . . . . . . . 2 Parts Stolen . | . . . . . . . . . . . . . . . . . . . . . . Parts Stripped . | . . . . . . . . . . . . . . . . . . . . . . Power Chain Reactions 9 | . . . . . 4 2 . . . 1 . . . . . . . . . 2 . Missiles Intercepted . | . . . . . . . . . . . . . . . . . . . . . . Alert | -11 -10 -10 -10 -9 -8 -7 -7 -7 -7 -6 -6 -6 -6 -6 -5 -5 -5 -5 -5 -5 -4 ------- Run | Jun Mat Min Exi Min Mat Fac Low Low Dat Pro Fac Low Low Zio Pro Fac Ext Cet Arc Hub Fac Peak Influence 2069 | 25 162 225 . 351 513 1940 . . . . 305 . . . . 760 761 1291 648 2069 1935 Initial 982 | . 16 28 . . 89 201 . . . . . . . . . 84 372 456 456 65 982 Average 473 | 12 62 43 . 134 223 720 . . . . 98 . . . . 310 491 785 388 1042 1288 Maximum Alert Level 5 | . . 1 . 1 2 5 . . . . 1 . . . . 3 3 4 2 5 5 Low Security (%) 34 | 100 100 98 . 68 46 . . . . . 81 . . . . 46 . . 13 4 . Level 1 18 | . . 1 . 31 33 28 . . . . 18 . . . . 1 39 . 40 8 . Level 2 24 | . . . . . 20 34 . . . . . . . . . 50 50 50 46 14 . Level 3 9 | . . . . . . 22 . . . . . . . . . 1 10 29 . 9 47 Level 4 9 | . . . . . . 11 . . . . . . . . . . . 19 . 57 30 Level 5 . | . . . . . . 3 . . . . . . . . . . . . . 4 . High Security 1 | . . . . . . . . . . . . . . . . . . . . . 21 Max Security . | . . . . . . . . . . . . . . . . . . . . . . Squads Dispatched 66 | . . . . . 2 17 . . . . 4 . . . . 5 4 . . 17 17 Investigation 10 | . . . . . 1 4 . . . . . . . . . 1 1 . . 3 . Extermination 16 | . . . . . . 5 . . . . 2 . . . . 2 . . . 4 3 Reinforcement 14 | . . . . . 1 6 . . . . 1 . . . . . 1 . . 4 1 Assault 23 | . . . . . . 2 . . . . . . . . . 2 2 . . 4 13 Garrison 3 | . . . . . . . . . . . 1 . . . . . . . . 2 . Intercept . | . . . . . . . . . . . . . . . . . . . . . . Searches Triggered . | . . . . . . . . . . . . . . . . . . . . . . Data Miner Redirects 10 | . . . . . . . . . . . . . . . . 1 2 . . 6 1 Construction Impeded 6 | . . . . . 1 2 . . . . . . . . . . . . . 2 1 Haulers Reinforced 3 | . . . . . . 2 . . . . 1 . . . . . . . . . . Active Scanning Responses . | . . . . . . . . . . . . . . . . . . . . . . Cargo Convoy Interrupts 1 | . . . . . . 1 . . . . . . . . . . . . . . . Stealth | -11 -10 -10 -10 -9 -8 -7 -7 -7 -7 -6 -6 -6 -6 -6 -5 -5 -5 -5 -5 -5 -4 --------- Run | Jun Mat Min Exi Min Mat Fac Low Low Dat Pro Fac Low Low Zio Pro Fac Ext Cet Arc Hub Fac Distress Signals 17 | . . . . . 4 1 . . . . 2 . . . . 3 2 2 . 2 1 Communications Jammed 6 | . . . . . . 6 . . . . . . . . . . . . . . . Distress Signals 6 | . . . . . . 6 . . . . . . . . . . . . . . . Times Spotted 522 | . 14 7 . 13 44 100 3 . . 15 24 6 14 . 19 49 40 27 17 60 70 Peak Tracking Total 22 | . 3 4 . 4 5 8 2 . . 4 4 3 3 . 5 9 6 7 2 5 22 Tactical Retreats 20 | . 1 . . . 3 4 1 . . . . . . . 4 3 . . . 2 2 Traps | -11 -10 -10 -10 -9 -8 -7 -7 -7 -7 -6 -6 -6 -6 -6 -5 -5 -5 -5 -5 -5 -4 ------- Run | Jun Mat Min Exi Min Mat Fac Low Low Dat Pro Fac Low Low Zio Pro Fac Ext Cet Arc Hub Fac Traps Triggered 18 | . . . . . . 5 . . . . 5 . . . . 3 1 . . 4 . Indirectly . | . . . . . . . . . . . . . . . . . . . . . . Trap Hack Attempts 23 | . . . . . 23 . . . . . . . . . . . . . . . . Triggered 1 | . . . . . 1 . . . . . . . . . . . . . . . . Disarmed 3 | . . . . . 3 . . . . . . . . . . . . . . . . Reprogrammed . | . . . . . . . . . . . . . . . . . . . . . . Reused 1 | . . . . . . . . . . . . . 1 . . . . . . . . Traps Extracted . | . . . . . . . . . . . . . . . . . . . . . . Installed 6 | . . . . . . . 3 . . . . . 3 . . . . . . . . Triggered 4 | . . . . . . 2 1 . . . . . 1 . . . . . . . . Most Traps Carried 5 | . . . . . . . 1 . . . . . 5 3 . . . . . . . Machines | -11 -10 -10 -10 -9 -8 -7 -7 -7 -7 -6 -6 -6 -6 -6 -5 -5 -5 -5 -5 -5 -4 ---------- Run | Jun Mat Min Exi Min Mat Fac Low Low Dat Pro Fac Low Low Zio Pro Fac Ext Cet Arc Hub Fac Machines Disabled 75 | . . . . 5 2 22 . . . . 3 . 1 . . 4 2 . 1 24 11 Max in Single Turn 17 | . . . . 1 1 6 . . . . 1 . 1 . . 2 1 . 1 17 4 Garrison Access 8 | . . . . . 1 1 . . . . 2 . . . . 2 . . . 2 . Network Hub 2 | . . . . . . . . . . . . . . . . . . . . 2 . Machines Repaired . | . . . . . . . . . . . . . . . . . . . . . . Machines Sabotaged . | . . . . . . . . . . . . . . . . . . . . . . Overloaded Fab Kills . | . . . . . . . . . . . . . . . . . . . . . . Hacking | -11 -10 -10 -10 -9 -8 -7 -7 -7 -7 -6 -6 -6 -6 -6 -5 -5 -5 -5 -5 -5 -4 --------- Run | Jun Mat Min Exi Min Mat Fac Low Low Dat Pro Fac Low Low Zio Pro Fac Ext Cet Arc Hub Fac Machines Accessed 102 | . 10 . 1 . 17 14 . . 4 1 9 2 1 1 . 13 11 1 1 11 5 Terminals 62 | . 7 . . . 11 11 . . . 1 5 . . . . 6 9 1 . 9 2 Fabricators 4 | . . . . . . 1 . . . . 2 . . . . 1 . . . . . Repair Stations 8 | . 1 . . . 1 1 . . . . . . . . . 2 1 . . . 2 Recycling Units 7 | . 2 . . . 2 . . . . . . . . . . 1 1 . . . 1 Scanalyzers 3 | . . . . . 2 . . . . . . . . . . 1 . . . . . Garrison Access 8 | . . . . . 1 1 . . . . 2 . . . . 2 . . . 2 . Total Hacks 365 | . 27 . 1 . 94 29 . . 32 1 22 8 1 2 . 39 37 1 25 26 20 Successful 221 | . 18 . 1 . 73 4 . . 32 1 10 8 1 2 . 21 13 1 25 6 5 Failed 142 | . 8 . . . 20 25 . . . . 12 . . . . 18 24 . . 20 15 Catastrophic 41 | . . . . . 2 11 . . . . 3 . . . . 5 9 . . 8 3 Database Lockouts 2 | . 1 . . . 1 . . . . . . . . . . . . . . . . Manual 133 | . 19 . . . 40 11 . . . . 7 . . 4 . 10 26 1 . 10 5 Terminals 189 | . 20 . . . 53 24 . . . 1 12 . . . . 24 30 1 . 21 3 Fabricators 10 | . . . . . . 1 . . . . 6 . . . . 3 . . . . . Repair Stations 24 | . 2 . . . 4 2 . . . . . . . . . 4 3 . . . 9 Recycling Units 28 | . 5 . . . 8 . . . . . . . . . . 3 4 . . . 8 Scanalyzers 28 | . . . . . 27 . . . . . . . . . . 1 . . . . . Garrison Access 17 | . . . . . 2 2 . . . . 4 . . . . 4 . . . 5 . Terminal Hacks 116 | . 4 . 1 . 18 1 . . 32 1 4 8 1 2 . 11 4 1 25 3 . Record 48 | . . . 1 . . . . . 11 1 . 7 . . . 2 . . 25 1 . Part Schematic 12 | . . . . . . . . . 10 . . . . 2 . . . . . . . Robot Schematic 9 | . . . . . . . . . 8 . . . . . . . 1 . . . . Robot Analysis 8 | . 2 . . . 1 . . . . . 1 . . . . 3 1 . . . . Prototype ID Bank 6 | . . . . . 2 . . . 3 . . . . . . . . . . 1 . Open Door 3 | . . . . . . . . . . . . 1 1 . . . . 1 . . . Branch Access Points 4 | . . . . . 1 1 . . . . 1 . . . . 1 . . . . . Emergency Access Points 1 | . . . . . 1 . . . . . . . . . . . . . . . . Terminal Index 5 | . 1 . . . 1 . . . . . 1 . . . . 1 . . . 1 . Repair Station Index 1 | . . . . . 1 . . . . . . . . . . . . . . . . Scanalyzer Index 1 | . . . . . 1 . . . . . . . . . . . . . . . . Alert Level 1 | . . . . . 1 . . . . . . . . . . . . . . . . Unreport Threat 4 | . . . . . 3 . . . . . 1 . . . . . . . . . . Locate Traps 6 | . 1 . . . 2 . . . . . . . . . . 1 2 . . . . Recall Extermination 1 | . . . . . . . . . . . . . . . . 1 . . . . . Hauler Manifests 1 | . . . . . 1 . . . . . . . . . . . . . . . . Registered Components 2 | . . . . . 1 . . . . . . . . . . 1 . . . . . Registered Prototypes 2 | . . . . . 1 . . . . . . . . . . 1 . . . . . Zone Layout 1 | . . . . . 1 . . . . . . . . . . . . . . . . Fabricator Hacks 5 | . . . . . . . . . . . 2 . . . . 3 . . . . . Load Schematic 2 | . . . . . . . . . . . 1 . . . . 1 . . . . . Build 3 | . . . . . . . . . . . 1 . . . . 2 . . . . . Repair Station Hacks 13 | . . . . . 4 2 . . . . . . . . . 3 1 . . . 3 Scan Component 8 | . . . . . 2 1 . . . . . . . . . 2 1 . . . 2 Repair 5 | . . . . . 2 1 . . . . . . . . . 1 . . . . 1 Recycling Unit Hacks 6 | . 2 . . . 2 . . . . . . . . . . . 1 . . . 1 Retrieve Components 6 | . 2 . . . 2 . . . . . . . . . . . 1 . . . 1 Scanalyzer 27 | . . . . . 27 . . . . . . . . . . . . . . . . Insert Component 12 | . . . . . 12 . . . . . . . . . . . . . . . . Analyze 15 | . . . . . 15 . . . . . . . . . . . . . . . . Garrison Access Hacks 4 | . . . . . 1 . . . . . 2 . . . . 1 . . . . . Seal Access 4 | . . . . . 1 . . . . . 2 . . . . 1 . . . . . Unauthorized Hacks 50 | . 12 . . . 21 1 . . . . 2 . . . . 3 7 . . 3 1 Terminals 35 | . 9 . . . 15 . . . . . 1 . . . . 2 6 . . 2 . Track 5 | . 1 . . . 4 . . . . . . . . . . . . . . . . Assimilate 9 | . 3 . . . 1 . . . . . . . . . . . 4 . . 1 . Botnet 19 | . 4 . . . 9 . . . . . 1 . . . . 2 2 . . 1 . Operators 2 | . 1 . . . 1 . . . . . . . . . . . . . . . . Fabricators 1 | . . . . . . . . . . . 1 . . . . . . . . . . Liberate 1 | . . . . . . . . . . . 1 . . . . . . . . . . Repair Stations . | . . . . . . . . . . . . . . . . . . . . . . Recycling Units 11 | . 3 . . . 6 . . . . . . . . . . . 1 . . . 1 Monitor 1 | . . . . . 1 . . . . . . . . . . . . . . . . Reject 6 | . 2 . . . 2 . . . . . . . . . . . 1 . . . 1 Recyclers 1 | . . . . . 1 . . . . . . . . . . . . . . . . Mask 3 | . 1 . . . 2 . . . . . . . . . . . . . . . . Scanalyzers . | . . . . . . . . . . . . . . . . . . . . . . Garrison Access 3 | . . . . . . 1 . . . . . . . . . 1 . . . 1 . Jam 3 | . . . . . . 1 . . . . . . . . . 1 . . . 1 . Data Cores Recovered . | . . . . . . . . . . . . . . . . . . . . . . Used . | . . . . . . . . . . . . . . . . . . . . . . Hacking Detections 79 | . 9 . . . 14 13 . . . . 7 . . . . 10 11 . . 11 4 Full Trace Events 4 | . . . . . . 1 . . . . . . . . . . 1 . . 2 . Feedback Events . | . . . . . . . . . . . . . . . . . . . . . . Feedback Blocked . | . . . . . . . . . . . . . . . . . . . . . . Robot Schematics Acquired 12 | . . . . . . . . . 8 . . . . 3 . . 1 . . . . Robots Built 1 | . . . . . . . . . . . . . . . . 1 . . . . . Authchips . | . . . . . . . . . . . . . . . . . . . . . . Time 40 | . . . . . . . . . . . . . . . . 40 . . . . . Total Robot Build Rating 1 | . . . . . . . . . . . . . . . . 1 . . . . . Part Schematics Acquired 39 | . . . . . 12 . . . 10 . . . . 17 . . . . . . . Parts Built 2 | . . . . . . . . . . . 1 . . . . 1 . . . . . Authchips 2 | . . . . . . . . . . . 1 . . . . 1 . . . . . Time 126 | . . . . . . . . . . . 50 . . . . 76 . . . . . Total Part Build Rating 10 | . . . . . . . . . . . 5 . . . . 5 . . . . . Parts Repaired 4 | . . . . . 2 1 . . . . . . . . . . . . . . 1 Time 351 | . . . . . 189 32 . . . . . . . . . 22 . . . . 108 Parts Recycled . | . . . . . . . . . . . . . . . . . . . . . . Recycled Matter . | . . . . . . . . . . . . . . . . . . . . . . Retrieved Matter . | . . . . . . . . . . . . . . . . . . . . . . Retrieved Components 35 | . 14 . . . 11 . . . . . . . . . . . 3 . . . 7 Parts Scanalyzed 12 | . . . . . 12 . . . . . . . . . . . . . . . . Part Schematics Acquired 12 | . . . . . 12 . . . . . . . . . . . . . . . . Parts Damaged 2 | . . . . . 2 . . . . . . . . . . . . . . . . Bothacking | -11 -10 -10 -10 -9 -8 -7 -7 -7 -7 -6 -6 -6 -6 -6 -5 -5 -5 -5 -5 -5 -4 ------------ Run | Jun Mat Min Exi Min Mat Fac Low Low Dat Pro Fac Low Low Zio Pro Fac Ext Cet Arc Hub Fac Used RIF Installer . | . . . . . . . . . . . . . . . . . . . . . . Robots Hacked 2 | . . . . . 1 . . . . . . . . . . . . . 1 . . Non-combat 2 | . . . . . 1 . . . . . . . . . . . . . 1 . . Combat . | . . . . . . . . . . . . . . . . . . . . . . Robot Hacks Applied 5 | . . . . . 1 . . . . . . . . . . . . . 4 . . parse_system 2 | . . . . . 1 . . . . . . . . . . . . . 1 . . check_alert 3 | . . . . . . . . . . . . . . . . . . . 3 . . Relay Couplers Released 4 | . . . . . . . . . . . . . . . . 1 . . . 3 . Machine Destruction 4 | . . . . . . . . . . . . . . . . 1 . . . 3 . Fabnet Peak Effective % . | . . . . . . . . . . . . . . . . . . . . . . Robots Rewired 21 | . . . . . . . . . . . . . 3 . . 1 16 . . . 1 Allies Hacked . | . . . . . . . . . . . . . . . . . . . . . . Hacks Repelled . | . . . . . . . . . . . . . . . . . . . . . . Allies | -11 -10 -10 -10 -9 -8 -7 -7 -7 -7 -6 -6 -6 -6 -6 -5 -5 -5 -5 -5 -5 -4 -------- Run | Jun Mat Min Exi Min Mat Fac Low Low Dat Pro Fac Low Low Zio Pro Fac Ext Cet Arc Hub Fac Total Allies 50 | . 2 3 . 1 1 . . . . 1 6 . 3 . . 3 24 5 . . 1 Largest Group 17 | . 1 4 4 4 2 . . . . 1 3 . 3 3 3 2 17 16 6 5 1 Highest-Rated Group 773 | . 10 50 50 73 26 . . . . 96 93 . 93 93 93 99 620 773 616 466 42 Highest-Rated Ally 159 | . 10 16 16 31 16 . . . . 96 31 . 31 31 31 99 159 159 143 96 42 Total Orders 25 | . . 4 . . 5 . . . . . . . 1 . . 6 4 3 2 . . STAY 11 | . . 2 . . 3 . . . . . . . . . . . 2 3 1 . . FOLLOW 8 | . . 2 . . 2 . . . . . . . . . . 1 2 . 1 . . DROP 1 | . . . . . . . . . . . . . . . . 1 . . . . . PICKUP 1 | . . . . . . . . . . . . . . . . 1 . . . . . COLLECT 1 | . . . . . . . . . . . . . . . . 1 . . . . . EXPLORE 3 | . . . . . . . . . . . . . 1 . . 2 . . . . . Ally Attacks 444 | . . 9 . 23 19 . . . . 6 51 . . . 3 16 66 154 21 73 3 Total Damage 12660 | . . 112 . 273 255 . . . . 143 694 . . . 42 1276 1629 4285 676 3168 107 Kills 87 | . . 2 . 5 2 . . . . 2 7 . . . 1 8 14 25 3 17 1 Allies Corrupted 2 | . . . . . . . . . . . . . . . . 2 . . . . . Allies Melted . | . . . . . . . . . . . . . . . . . . . . . . Intel | -11 -10 -10 -10 -9 -8 -7 -7 -7 -7 -6 -6 -6 -6 -6 -5 -5 -5 -5 -5 -5 -4 ------- Run | Jun Mat Min Exi Min Mat Fac Low Low Dat Pro Fac Low Low Zio Pro Fac Ext Cet Arc Hub Fac Robot Analysis Total 8 | . 2 . . . 1 . . . . . 1 . . . . 3 1 . . . . Derelict Logs Recovered 15 | . . 2 . 2 . . 3 1 . 1 . 1 1 1 3 . . . . . . Drone Launches 3 | . . . . . . . . . . . . . 1 . . 2 . . . . . Drone Recoveries 1 | . . . . . . . . . . . . . 1 . . . . . . . . Exploration | -11 -10 -10 -10 -9 -8 -7 -7 -7 -7 -6 -6 -6 -6 -6 -5 -5 -5 -5 -5 -5 -4 ------------- Run | Jun Mat Min Exi Min Mat Fac Low Low Dat Pro Fac Low Low Zio Pro Fac Ext Cet Arc Hub Fac Turns Passed 37854 | 249 1599 770 449 583 2751 3447 1752 1381 140 2406 2536 1278 3136 2917 2339 2247 1800 937 1717 2026 1394 Spaces Moved 21456 | 142 935 622 387 466 1624 1924 1012 944 100 1420 1425 1009 2026 1964 1381 1264 813 445 303 693 557 Core 93 | 11 . . . . . . . . . . . . . . . . . . . . 82 Treads 514 | . . . . . . . . . . . . . . . . 10 . 1 . 412 91 Legs 626 | 131 421 . . . . . . . . . . . . . . 74 . . . . . Wheels 20223 | . 514 622 387 466 1624 1924 1012 944 100 1420 1425 1009 2026 1964 1381 1180 813 444 303 281 384 Hover . | . . . . . . . . . . . . . . . . . . . . . . Flight . | . . . . . . . . . . . . . . . . . . . . . . Fastest Speed 50 | 50 115 115 115 115 110 125 130 145 130 145 120 120 120 130 130 120 120 130 190 160 50 Average Speed 141 | 120 146 115 115 115 119 142 144 145 130 145 142 120 137 144 144 136 127 168 190 222 180 Slowest Speed 400 | 200 260 115 115 115 145 155 145 145 145 145 175 120 145 145 145 400 175 240 190 245 250 Overloaded Moves . | . . . . . . . . . . . . . . . . . . . . . . Propulsion Burnouts . | . . . . . . . . . . . . . . . . . . . . . . Robots Hopped . | . . . . . . . . . . . . . . . . . . . . . . Cave-ins Triggered 1 | . . . . . . . . . . . . . . . . . . . . 1 . Exploration Rate (%) 73 | 7 99 99 88 95 87 41 94 96 69 98 30 97 94 88 95 39 63 71 81 70 19 Regions Visited 21 Branch Regions 15 Pre-discovered Areas 4 | . . . . . . . . . 1 . . 1 . 2 . . . . . . . Known Exits Taken 16 | . . . . . 1 1 1 1 1 1 1 1 1 1 1 1 1 1 1 1 . Unknown Exits Taken 5 | 1 1 1 1 1 . . . . . . . . . . . . . . . . . Scrap Searched 33 | . . 1 . 2 . . 15 4 . 2 . 4 2 2 1 . . . . . . Spaces Dug 231 | . 3 . . . 11 16 44 . . 71 4 2 . . 4 20 20 . . 25 11 Terrain Destroyed 1374 | . 3 . . 11 33 179 67 2 . 149 27 44 90 . 16 61 43 5 3 372 269 Melee 6 | . 3 . . . . . . . . . . . . . . . . . . . 3 Projectile 480 | . . . . . 13 51 46 2 . 62 20 20 5 . 16 61 43 5 3 68 65 AOE 888 | . . . . 11 20 128 21 . . 87 7 24 85 . . . . . . 304 201 Terrain Rammed . | . . . . . . . . . . . . . . . . . . . . . . Walls Destroyed . | . . . . . . . . . . . . . . . . . . . . . . Machines Disabled . | . . . . . . . . . . . . . . . . . . . . . . Actions | -11 -10 -10 -10 -9 -8 -7 -7 -7 -7 -6 -6 -6 -6 -6 -5 -5 -5 -5 -5 -5 -4 --------- Run | Jun Mat Min Exi Min Mat Fac Low Low Dat Pro Fac Low Low Zio Pro Fac Ext Cet Arc Hub Fac Total 27192 | 186 1108 665 391 493 2301 2352 1242 952 112 1662 1810 1048 2313 2039 1646 1634 1496 604 1402 986 750 Wait 3513 | 10 82 34 5 10 475 128 125 1 . 112 219 20 151 37 218 170 418 102 1069 119 8 Move 21435 | 141 934 621 386 465 1623 1924 1011 943 99 1419 1424 1008 2025 1963 1380 1263 812 444 302 691 557 Hop . | . . . . . . . . . . . . . . . . . . . . . . Pick Up 276 | 10 25 2 . 2 33 36 13 1 4 9 23 2 19 7 7 24 20 11 . 14 14 Fast Attach 196 | 7 4 . . . 6 23 9 2 2 14 24 2 13 8 . 26 10 5 2 24 15 Attach 131 | . 4 . . . 16 16 4 . . 17 11 1 9 3 4 11 7 3 . 8 17 Detach 47 | . 5 . . . 3 3 3 . . 12 4 . 1 3 . 5 1 . . 2 5 Swap 144 | . 7 . . 4 16 21 2 . . 5 15 2 10 4 . 8 15 8 1 15 11 Drop 336 | 2 17 2 . 2 30 51 17 3 7 18 39 3 27 13 3 32 25 17 2 17 9 Fire 850 | 16 23 6 . 10 75 149 55 2 . 56 43 10 26 1 34 85 41 14 22 95 87 Melee 15 | . 7 . . . 1 . . . . . . . . . . . . . 4 . 3 Ram 1 | . . . . . . 1 . . . . . . . . . . . . . . . Kick . | . . . . . . . . . . . . . . . . . . . . . . Crush . | . . . . . . . . . . . . . . . . . . . . . . Escape Stasis 25 | . . . . . . . . . . . 8 . . . . 8 8 . . 1 . Rewire 194 | . . . . . . . . . . . . . 29 . . 2 139 . . . 24 Trap 29 | . . . . . 23 . 3 . . . . . 3 . . . . . . . . Miscellaneous . | . . . . . . . . . . . . . . . . . . . . . . Route ------- -11/Junkyard -10/Materials (discovered 5 exits: *Mat x3 / [*Min x2]) -10/Mines (discovered 3 exits: *Mat x2 / *Exi) -10/Exiles -9/Mines (discovered 2 exits: *Mat x2) -8/Materials (discovered 3 exits: *Fac x3) -7/Factory (discovered 5 exits: *Fac / Sto x2 / *Low x2) -7/Lower Caves -7/Lower Caves (discovered 2 exits: *Fac / *Dat) -7/Data Miner -6/Proximity Caves -6/Factory (discovered 3 exits: *Fac / *Low x2) -6/Lower Caves -6/Lower Caves (discovered 2 exits: Fac / *Zio) -6/Zion (discovered 2 exits: [*Dee] / *Pro) -5/Proximity Caves -5/Factory (discovered 7 exits: *Fac x3 / *Upp x2 / *Ext x2) -5/Extension (discovered 2 exits: *Fac / *Cet) -5/Cetus (discovered 3 exits: *Fac x2 / *Arc) -5/Archives (discovered 3 exits: *Fac / *Hub x2) -5/Hub_04(d) (discovered 4 exits: *Fac x4) -4/Factory (discovered 1 exit: [*Upp]) History --------- Turn | Location | Event 21 | -11/Junkyard | Discovered new exit (range 14) 250 | -11/Junkyard | Entered Materials 250 | -10/Materials | Discovered new exit (range 8) 308 | -10/Materials | Build established: Mutant 484 | -10/Materials | Discovered new exit (range 10) 532 | -10/Materials | Discovered new exit (range 15) 1139 | -10/Materials | Central database locked down 1179 | -10/Materials | Discovered new exit (range 16) 1529 | -10/Materials | Discovered new exit (range 16) 1849 | -10/Materials | Entered Mines 1849 | -10/Mines | Accompanied by 1 ally 1869 | -10/Mines | Met a Derelict bent on vengeance 1915 | -10/Mines | Assisted by bots powering up and referring to "LRC-V3" 1928 | -10/Mines | Received a Rocket Launcher from a helpful Derelict 2076 | -10/Mines | Identified exit to Materials 2210 | -10/Mines | Build established: Commander-Mutant 2213 | -10/Mines | Discovered exit to Materials (range 14) 2362 | -10/Mines | Learned 2 Materials zone layouts 2428 | -10/Mines | Deemed a non-threat by the Exiles lab entrance 2428 | -10/Mines | Discovered new exit (range 5) 2619 | -10/Mines | Entered Exiles 2619 | -10/Exiles | Found Exiles lab abandoned 2619 | -10/Exiles | Accompanied by 4 allies 3054 | -10/Exiles | Discovered new exit (range 10) 3068 | -10/Exiles | Entered Mines 3068 | -9/Mines | Accompanied by 4 allies 3176 | -9/Mines | Learned Materials emergency access door positions 3227 | -9/Mines | Found a damaged Exp. Sensor Array with a note attached 3230 | -9/Mines | Found Prototype Device 3338 | -9/Mines | Discovered new exit (range 15) 3357 | -9/Mines | Discovered new exit (range 6) 3360 | -9/Mines | Received a Mining Laser from a helpful Derelict 3382 | -9/Mines | Build established: Mutant 3651 | -9/Mines | Entered Materials 3651 | -8/Materials | Accompanied by 2 allies 3651 | -8/Materials | Evolved 4 slots: Utility x3, Weapon x1 3652 | -8/Materials | Identified exit to Factory 4056 | -8/Materials | Build established: Scavenger-Tank 4099 | -8/Materials | Lost 3 parts (1p1n1u) 4300 | -8/Materials | Central database locked down 4573 | -8/Materials | Identified Exp. Sensor Array 5348 | -8/Materials | Discovered exit to Factory (range 5) 5365 | -8/Materials | Build established: Hacker-Tank 5791 | -8/Materials | Repaired Broken Exp. Sensor Array 5835 | -8/Materials | Discovered exit to Factory (range 15) 6351 | -8/Materials | Repaired Broken Hvy. Mace 6402 | -8/Materials | Entered Factory 6402 | -7/Factory | Evolved 2 slots: Utility x2 6403 | -7/Factory | Identified exit to Storage 6672 | -7/Factory | Destroyed 7 combat bots 6686 | -7/Factory | Discovered new exit (range 7) 6779 | -7/Factory | Build established: Scavenger-Tank 7027 | -7/Factory | Repaired Imp. Ion Engine 7106 | -7/Factory | Build established: Tank 7400 | -7/Factory | Cargo convoy interrupted 8170 | -7/Factory | System corruption reached 10% 8219 | -7/Factory | Found Corrupted Prototype Energy Cannon 8922 | -7/Factory | Identified exit to Lower Caves 9202 | -7/Factory | First assault squad dispatched 9425 | -7/Factory | Destroyed 11 combat bots 9849 | -7/Factory | Entered Lower Caves 9859 | -7/Lower Caves | Learned location of 1 exit from Proximity Caves 10248 | -7/Lower Caves | Attracted the attention of an 0b10 checkpoint 10388 | -7/Lower Caves | Identified exit to Lower Caves 10505 | -7/Lower Caves | Learned Factory emergency access door positions 10829 | -7/Lower Caves | Build established: Mutant 11057 | -7/Lower Caves | Identified Exp. Thermic Cannon 11295 | -7/Lower Caves | Build established: Derelict-Mutant 11601 | -7/Lower Caves | Entered another Lower Caves area 11769 | -7/Lower Caves | Discovered new exit (range 8) 11781 | -7/Lower Caves | Identified exit to Factory 11987 | -7/Lower Caves | Encountered a Warlord checkpoint 12179 | -7/Lower Caves | Build established: Derelict-Skirmisher 12843 | -7/Lower Caves | Discovered new exit (range 4) 12847 | -7/Lower Caves | Identified exit to Data Miner 12982 | -7/Lower Caves | Entered Data Miner 12984 | -7/Data Miner | Discovered new exit (range 6) 12992 | -7/Data Miner | Identified exit to Proximity Caves 13041 | -7/Data Miner | Met Data Miner 13067 | -7/Data Miner | Learned location of Section 7 (-2) 13067 | -7/Data Miner | Acquired the access code to Warlord's prototype stash 13089 | -7/Data Miner | Received God Mode back door access code from Data Miner 13122 | -7/Data Miner | Entered Proximity Caves 13178 | -6/Proximity Caves | Escorted by Enhanced Grunt 13184 | -6/Proximity Caves | Core integrity fell below 50% 13631 | -6/Proximity Caves | Learned Factory stockpile data 13680 | -6/Proximity Caves | Build established: Derelict-Mutant 14441 | -6/Proximity Caves | Spotted B-75 Beast 14554 | -6/Proximity Caves | Destroyed B-75 Beast 15357 | -6/Proximity Caves | Build established: Scavenger-Mutant 15485 | -6/Proximity Caves | System corruption reached 30% 15528 | -6/Proximity Caves | Entered Factory 15528 | -6/Factory | Evolved 2 slots: Propulsion x1, Utility x1 15908 | -6/Factory | Identified exit to Lower Caves 16140 | -6/Factory | Discovered new exit (range 11) 16231 | -6/Factory | Fabricated Lgt. Regenerative Plating (x1) 16241 | -6/Factory | Allied Derelicts emerged from ambush trap array 16291 | -6/Factory | Identified exit to Factory 16375 | -6/Factory | Garrison activated, responded to threat 16735 | -6/Factory | Build established: Skirmisher 17436 | -6/Factory | Spotted B-75 Beast 17491 | -6/Factory | Destroyed B-75 Beast 17799 | -6/Factory | Found Unknown Protection 17799 | -6/Factory | Identified Hvy. Insulated Plating 17803 | -6/Factory | Found Hvy. Insulated Plating 18064 | -6/Factory | Entered Lower Caves 18066 | -6/Lower Caves | Attracted the attention of an 0b10 checkpoint 18106 | -6/Lower Caves | Learned 4 Factory zone layouts 18610 | -6/Lower Caves | Learned location of Armory (-3) 18610 | -6/Lower Caves | Learned Extension terminal intel 18610 | -6/Lower Caves | Learned Extension emergency access door positions 18699 | -6/Lower Caves | Discovered new exit (range 14) 19300 | -6/Lower Caves | Identified exit to Lower Caves 19342 | -6/Lower Caves | Entered another Lower Caves area 19487 | -6/Lower Caves | Identified exit to Zion 20149 | -6/Lower Caves | Lost 3 parts (1n1u1w) 20538 | -6/Lower Caves | Build established: Tank 20720 | -6/Lower Caves | Found Prototype Device 20722 | -6/Lower Caves | Identified Heart of Steel 21028 | -6/Lower Caves | Build established: Skirmisher 21217 | -6/Lower Caves | Attracted the attention of an 0b10 checkpoint 22099 | -6/Lower Caves | Attacked by a delusional Derelict stockpiling Unaware 22382 | -6/Lower Caves | Build established: Mutant 22478 | -6/Lower Caves | Entered Zion 22478 | -6/Zion | Accompanied by 3 allies 22560 | -6/Zion | System corruption cleaned by Quarantine Array 22629 | -6/Zion | Discovered new exit (range 16) 22647 | -6/Zion | Acquired unknown access codes intercepted by a Zionite 22877 | -6/Zion | Build established: Skirmisher 23267 | -6/Zion | Given A8's code to call for help 23469 | -6/Zion | Build established: Mutant 23538 | -6/Zion | Opened final containment barrier to the Deep Caves 23562 | -6/Zion | Discovered new exit (range 3) 23562 | -6/Zion | Saw the warning signs outside the Deep Caves entrance 23608 | -6/Zion | Learned Factory garrison access intel 23633 | -6/Zion | Learned location of Quarantine (-2) 24536 | -6/Zion | Found Prototype Processor 24537 | -6/Zion | Identified Exp. Core Analyzer 24542 | -6/Zion | Found Exp. Core Analyzer 24571 | -6/Zion | Found Prototype Processor 24571 | -6/Zion | Identified Exp. Armor Integrity Analyzer 24575 | -6/Zion | Found Prototype Processor 24575 | -6/Zion | Identified Exp. Target Analyzer 25393 | -6/Zion | Identified exit to Proximity Caves 25395 | -6/Zion | Entered Proximity Caves 25395 | -5/Proximity Caves | Accompanied by 3 allies 25763 | -5/Proximity Caves | Spotted B-75 Beast 25809 | -5/Proximity Caves | Build established: Skirmisher 26292 | -5/Proximity Caves | Lost 3 parts (1u2w) 26523 | -5/Proximity Caves | Learned 4 Factory zone layouts 26874 | -5/Proximity Caves | Learned Factory non-interactive machine intel 27734 | -5/Proximity Caves | Entered Factory 27734 | -5/Factory | Evolved 2 slots: Utility x2 27735 | -5/Factory | Identified exit to Factory 27735 | -5/Factory | Identified exit to Upper Caves 27737 | -5/Factory | Loaded intel: 160 non-interactive machine locations 27738 | -5/Factory | Loaded intel: 4 garrison access locations 27936 | -5/Factory | Discovered exit to Upper Caves (range 23) 27938 | -5/Factory | Fabricated A-02 Transporter? 28085 | -5/Factory | Fabricated Lgt. Regenerative Plating (x1) 28403 | -5/Factory | Lost 5 parts (2p1n1u1w) 28434 | -5/Factory | Heart of Steel transformed into Warbot 28914 | -5/Factory | Identified exit to Extension 29234 | -5/Factory | First assault squad dispatched 29621 | -5/Factory | Incoming assault squad redirected 29940 | -5/Factory | Discovered exit to Factory (range 13) 29981 | -5/Factory | Entered Extension 29983 | -5/Extension | Loaded intel: 16 terminal locations 30581 | -5/Extension | First assault squad dispatched 30602 | -5/Extension | Incoming assault squad redirected 30624 | -5/Extension | Rescued a captive Derelict 30726 | -5/Extension | Incoming assault squad redirected 31042 | -5/Extension | Rescued A7 31053 | -5/Extension | Build established: Scavenger-Gunner 31332 | -5/Extension | Rescued a captive Derelict 31333 | -5/Extension | Rescued a captive Derelict 31370 | -5/Extension | Rescued a captive Derelict 31499 | -5/Extension | Rescued a captive Derelict 31500 | -5/Extension | Rescued a captive Derelict 31666 | -5/Extension | Discovered exit to Factory (range 10) 31667 | -5/Extension | Discovered new exit (range 6) 31675 | -5/Extension | Identified exit to Cetus 31763 | -5/Extension | Build established: Commander-Tank 31781 | -5/Extension | Entered Cetus 31781 | -5/Cetus | Accompanied by 16 allies (A7) 31786 | -5/Cetus | Acquired a Cetus Manufacturing Module code from A7 31800 | -5/Cetus | Spotted Cetus Guard 31800 | -5/Cetus | Spotted Cetus Guard 31805 | -5/Cetus | Spotted Cetus Guard 31808 | -5/Cetus | Spotted Cetus Guard 31811 | -5/Cetus | Allies destroyed Cetus Guard 31815 | -5/Cetus | Allies destroyed Cetus Guard 31815 | -5/Cetus | Allies destroyed Cetus Guard 31820 | -5/Cetus | Allies destroyed Cetus Guard 31862 | -5/Cetus | Discovered exit to Factory (range 15) 32025 | -5/Cetus | Started Cetus Manufacturing Module 32050 | -5/Cetus | Manufactured an Enhanced Grunt 32061 | -5/Cetus | Discovered new exit (range 16) 32075 | -5/Cetus | Manufactured an Enhanced Grunt 32089 | -5/Cetus | Spotted Cetus Guard 32090 | -5/Cetus | Spotted Cetus Guard 32092 | -5/Cetus | Destroyed Cetus Guard 32093 | -5/Cetus | Spotted Cetus Guard 32094 | -5/Cetus | Spotted Cetus Guard 32100 | -5/Cetus | Manufactured an Enhanced Grunt 32106 | -5/Cetus | Allies destroyed Cetus Guard 32107 | -5/Cetus | Destroyed Cetus Guard 32113 | -5/Cetus | Allies destroyed Cetus Guard 32115 | -5/Cetus | Discovered exit to Factory (range 15) 32124 | -5/Cetus | Met Revision 17 32125 | -5/Cetus | Manufactured an Enhanced Grunt 32150 | -5/Cetus | Manufactured an Enhanced Grunt 32251 | -5/Cetus | Identified exit to Archives 32718 | -5/Cetus | Entered Archives 32718 | -5/Archives | Accompanied by 6 allies (A7) 32752 | -5/Archives | Build established: Scavenger-Tank 32775 | -5/Archives | Discovered new exit (range 16) 32796 | -5/Archives | Unable to access archive contents 32815 | -5/Archives | Unable to access archive contents 32904 | -5/Archives | Discovered exit to Factory (range 16) 32950 | -5/Archives | Identified exit to Hub_04(d) 34005 | -5/Archives | Discovered exit to Hub_04(d) (range 14) 34247 | -5/Archives | Build established: Scavenger-Mutant 34435 | -5/Archives | Entered Hub_04(d) 34435 | -5/Hub_04(d) | Accompanied by 5 allies 34513 | -5/Hub_04(d) | Discovered exit to Factory (range 16) 34663 | -5/Hub_04(d) | Found Prototype Device 34663 | -5/Hub_04(d) | Identified Exp. Thermal Shield 34755 | -5/Hub_04(d) | Discovered exit to Factory (range 12) 34900 | -5/Hub_04(d) | Core integrity fell below 50% 34954 | -5/Hub_04(d) | Discovered exit to Factory (range 14) 35003 | -5/Hub_04(d) | Garrison activated, responded to threat 35025 | -5/Hub_04(d) | Garrison activated, responded to threat 35035 | -5/Hub_04(d) | First assault squad dispatched 35048 | -5/Hub_04(d) | Incoming assault squad redirected 35052 | -5/Hub_04(d) | Incoming assault squad redirected 35089 | -5/Hub_04(d) | Incoming investigation squad redirected 35109 | -5/Hub_04(d) | Discovered exit to Factory (range 16) 35195 | -5/Hub_04(d) | Build established: Scavenger-Tank 35359 | -5/Hub_04(d) | Incoming assault squad redirected 35401 | -5/Hub_04(d) | Incoming assault squad redirected 35573 | -5/Hub_04(d) | Incoming investigation squad redirected 35964 | -5/Hub_04(d) | Crushed by falling debris 36010 | -5/Hub_04(d) | Lost 3 parts (2u1w) 36314 | -5/Hub_04(d) | System corruption reached 10% 36361 | -5/Hub_04(d) | Network Hub disabled 36361 | -5/Hub_04(d) | Network Hub disabled 36362 | -5/Hub_04(d) | Core integrity fell below 20% 36449 | -5/Hub_04(d) | System corruption reached 30% 36461 | -5/Hub_04(d) | Entered Factory 36461 | -4/Factory | Evolved 2 slots: Utility x1, Weapon x1 36711 | -4/Factory | First assault squad dispatched 36833 | -4/Factory | Repaired Centrium Medium Armor Plating 37083 | -4/Factory | Found Prototype Launcher 37083 | -4/Factory | Identified Tactical Quantum Warhead 37203 | -4/Factory | Lost 3 parts (1n2u) 37276 | -4/Factory | Incoming assault squad redirected 37304 | -4/Factory | Lost 3 parts (2u1w) 37369 | -4/Factory | Destroyed 7 combat bots 37552 | -4/Factory | High security lockdown imminent 37612 | -4/Factory | Lost 6 parts (2p3u1w) 37632 | -4/Factory | High security lockdown engaged 37754 | -4/Factory | System corruption reached 10% 37802 | -4/Factory | Core integrity fell below 50% 37827 | -4/Factory | Core integrity fell below 20% 37831 | -4/Factory | Lost 16 parts (1p4n6u5w) 37851 | -4/Factory | Discovered new exit (range 11) 37855 | -4/Factory | Destroyed by S-27 Virus with Autogun Last Messages --------------- 37803_ G-73 Enforcer unfolds itself. 37803_ B-60 Warrior unfolds itself. 37803_ G-67 Veteran unfolds itself. 37803_ M-36 Artificer unfolds itself. 37803_ Dropped Hcp. Storage Unit. 37804_ Dropped Authchip [R/Combat]. 37805_ Acquired Lgt. Regenerative Plating. 37808_ Slug penetrates Wall. 37809_ B-60 Warrior heat short circuits Imp. Treads. 37810_ System corrupted: Heat flow error (+288). 37818_ Slug penetrates Wall. 37843_ Power Conduit explodes. 37843_ Power Sword destroyed. 37843_ Power Conduit explodes. 37843_ P-70 Sage destroyed. 37843_ Recycling Unit disabled. 37843_ HERF Cannon tumbles out of recycling unit. 37843_ Flexi-carbon Leg tumbles out of recycling unit. 37843_ Door malfunctions. 37851_ EXIT=FOUND Map ----- +----------------------------------------------------+ | ##############+######????????????????????????????? | | ?????????????????????????????? | | #??????????????????????????????? | | #??????????????????????????????? | | #??????????????????????????????? | | #######????????????????????????? | | " ##???????????????????????? | | ###??? ???????????????? | | #####+#######/"[ #?? ?????????????? | | ??? ????#!%* #?? ?????????????? | | ? "== #?? ?????????????? | | " ##? #?????????????? | | " #? #?????????????? | | " " ##?# #?????????????? | | " ""#### #?????????????? | | " " # #?????????????? | | " ] " # #?????????????? | | " # # ##########????? | | " = # # ?????? | | ! #" # # ?????? | | # ! ] # # "" ?????? | | ########################## + " """???????? | | ?????????????????????????# # "F """???????? | | ?????????????????????????###### "" """" ????? | | ?????????????????### =### ## ?? | | ??????????s < @ """" """"??????? | | ?????????????????### ### # """" """???????? | | ?????????????????????????##+## """" "?????????? | | ?????????????????????????????# ??????????? | | ?????????????????????????????# ?????????? | | ?????????????????????????????# ####????????? | | ?????????????????????????????+ +???????????? | | ?????????????????????????????# ###???????????? | | ?????????????????????????????# #?????????????? | | ?????????????????????????????#######?????????????? | | ?????????????????????????????????????????????????? | | ?????????????????????????????????????????????????? | | ?????????????????????????????????????????????????? | | ?????????????????????????????????????????????????? | | ?????????????????????????????????????????????????? | | | | | | | | | | | | | | | | | | | | | +----------------------------------------------------+ Best States ------------- Heat Dissipation 121 Coolant Potential 65 Energy Generation 25 Energy Capacity 810 Matter Stores 300 Matter Capacity 300 Sight Range 20 Robot Scan Range 20 Terrain Scan Range 16 Terrain Scan Density 10 Jamming Range 12 Additional Mass Support 6 Armor Coverage 900 Resistance: KI 30 Resistance: TH 30 Resistance: EM 30 Core Shielding 30 Weapon Cycling 20 Evasion (%) 55 Target Analysis 6 Core Analysis 8 Recoil Reduction 3 Particle Charging 25 Offensive Hacking 14 Defensive Hacking 22 Authchip Count 3 Trap Extractor Capacity 6 Item Schematics ----------------- Exp. Sensor Array | -8/Materials | Scanalyzed Hcp. Storage Unit | -8/Materials | Scanalyzed Reactive Plating | -8/Materials | Scanalyzed Reflective Plating | -8/Materials | Scanalyzed Rocket Launcher | -8/Materials | Scanalyzed Particle Charger | -8/Materials | Scanalyzed Hvy. Rocket Launcher | -8/Materials | Scanalyzed Adv. Treads | -8/Materials | Scanalyzed Energy Filter | -8/Materials | Scanalyzed Hvy. Mace | -8/Materials | Scanalyzed Hvy. Ion Cannon | -8/Materials | Scanalyzed Hcp. Matter Pod | -8/Materials | Scanalyzed Combat Drone Bay | -7/Data Miner | Free Lgt. Regenerative Plating | -7/Data Miner | Free Biomechanical Wings | -7/Data Miner | Free Exp. Targeting Computer | -7/Data Miner | Free Imp. Heavy Machine Gun | -7/Data Miner | Free Arm. Medium Treads | -7/Data Miner | Free Imp. Remote Datajack | -7/Data Miner | Free Imp. Corruption Screen | -7/Data Miner | Free Adv. Plasma Cannon | -7/Data Miner | Free Lgt. Antimatter Reactor | -7/Data Miner | Free Battle Rifle | -6/Zion | Free Flamer | -6/Zion | Free Drone Bay | -6/Zion | Archive Imp. Thermal Shield | -6/Zion | Archive Hyp. Gauss Rifle | -6/Zion | Archive Adv. Trap Extractor | -6/Zion | Archive System Guard | -6/Zion | Archive Imp. Kinecellerator | -6/Zion | Archive Imp. Hardlight Generator | -6/Zion | Archive Imp. Arc Thrower | -6/Zion | Archive Matter Neutralizer | -6/Zion | Archive Hvy. Plasma Cannon | -6/Zion | Archive Field Propulsion Drive | -6/Zion | Archive Magnetic Acceleration Cannon | -6/Zion | Archive Tesla Rifle | -6/Zion | Archive Remote Force Field | -6/Zion | Archive Imp. Trap Scanner | -6/Zion | Archive Robot Schematics ------------------ O-24 Administrator | -7/Data Miner | Free P-60 Hacker | -7/Data Miner | Free W-25 Informer | -7/Data Miner | Free G-50 Soldier | -7/Data Miner | Free M-22 Extractor | -7/Data Miner | Free S-27 Virus | -7/Data Miner | Free L-41 Fighter | -7/Data Miner | Free Y-54 Guardian | -7/Data Miner | Free H-66 Slayer | -6/Zion | Archive M-14 Sweeper | -6/Zion | Archive G-73 Enforcer | -6/Zion | Archive Y-64 Sentinel | -5/Extension | Hacked Fabricated ------------ Lgt. Regenerative Plating | x1 | -6/Factory | Authchip A-02 Transporter | x1 | -5/Factory | Preloaded Lgt. Regenerative Plating | x1 | -5/Factory | Authchip Alien Tech Used ----------------- None Achievements -------------- None Challenges ------------ None Game ------ Seed CoolantColdDeconstructor Manual? 0 Play Time 05:47:38 Cumulative 543.2 hours Start 2023.03.05 @ 22:05:58 End 2023.03.06 @ 05:02:45 Sessions 1 Manual Loads 0 Difficulty Rogue Special Mode None Game No. 384 Rogue 384 Adventurer 0 Explorer 0 Win Type - Total 1 Types 1/0/0/0/0/0/0/0/0 Lore% 69 Gallery% 77 Achievement% 58 Wizard Run 0 Options --------- ASCII 0 Keyboard 0 Movement Mouse Keybinds 0 Fullscreen 1 Font 16/SmallcapsGlow Map View 75x55 Tactical HUD 1 Map Filters NONE Filters NONE Steam 1 RUN: d236f3e5-288a-495b-a01a-dbb646c243ba